bitfinex/quotes_SOLUSD_20250625
["timestamp","ask_amount","ask_price","bid_price","bid_amount"]
[1750833869591,5.50008702,146.41,146.37,12.33199549]
[1750833870392,3.51910508,146.41,146.37,10.35101355]
[1750833870895,36.34890654,146.42,146.37,10.35101355]
[1750833871696,6.82927827,146.43,146.39,3.51910508]
[1750833871871,8.69841933,146.45,146.39,3.51910508]
[1750833871872,29.51910508,146.44,146.39,3.51910508]
[1750833872192,3.51910508,146.44,146.39,3.51910508]
[1750833872872,10.34792378,146.44,146.39,10.3499816]
[1750833873572,3.51910508,146.44,146.39,10.3499816]
[1750833874791,10.34754794,146.45,146.4,11.95332876]
[1750833876683,6.82844286,146.45,146.4,11.95332876]
[1750833876883,10.34754794,146.45,146.4,11.95332876]
[1750833877598,3.51910508,146.45,146.4,11.95332876]
[1750833878578,179.02799211,146.46,146.4,11.95332876]
[1750833878785,3.51910508,146.45,146.4,11.95332876]
[1750833880283,3.51910508,146.45,146.41,3.51910508]
[1750833880599,3.51910508,146.45,146.4,11.95332876]
[1750833881604,3.51910508,146.46,146.41,3.51910508]
[1750833881810,3.51910508,146.46,146.42,3.51910508]
[1750833882376,3.51910508,146.46,146.41,3.51910508]
[1750833882999,3.51910508,146.46,146.41,10.34899602]
[1750833883197,3.51910508,146.45,146.41,3.51910508]
[1750833883795,3.51910508,146.45,146.41,10.34915937]
[1750833884306,3.51910508,146.45,146.41,6.83005429]
[1750833884887,3.51910508,146.46,146.42,3.51910508]
[1750833885883,3.51910508,146.46,146.41,10.34915937]
[1750833886799,10.34712417,146.46,146.41,6.83005429]
[1750833886987,3.51910508,146.45,146.41,10.34915937]
[1750833889899,6.82799457,146.46,146.41,6.83013397]
[1750833890205,10.34709965,146.46,146.41,10.34923905]
[1750833890793,3.51910508,146.45,146.41,6.83013397]
[1750833891001,3.51910508,146.45,146.41,10.34923905]
[1750833891405,6.82799457,146.46,146.41,10.34923905]
[1750833891702,3.51910508,146.45,146.41,10.34923905]
[1750833892612,5.0893326,146.47,146.43,3.51910508]
[1750833892815,3.51910508,146.47,146.43,3.51910508]
[1750833893714,3.51910508,146.47,146.42,3.51910508]
[1750833893917,10.34654041,146.47,146.42,3.51910508]
[1750833894114,15.44505816,146.47,146.42,3.51910508]
[1750833894321,15.44505816,146.47,146.42,10.34868394]
[1750833897719,15.44505816,146.47,146.41,25.47978341]
[1750833897896,15.44505816,146.47,146.42,3.51910508]
[1750833898590,3.51910508,146.46,146.42,3.51910508]
[1750833899721,10.34716344,146.46,146.42,3.51910508]
[1750833901907,5.09851775,146.47,146.43,3.51910508]
[1750833902117,9.43910508,146.48,146.43,3.51910508]
[1750833902822,3.51910508,146.48,146.43,3.51910508]
[1750833903026,3.51910508,146.47,146.43,3.51910508]
[1750833903326,3.51910508,146.47,146.42,10.34850539]
[1750833903718,3.51910508,146.47,146.42,6.82940031]
[1750833904028,3.51910508,146.47,146.43,3.51910508]
[1750833904231,10.34672699,146.47,146.43,3.51910508]
[1750833905634,10.34672699,146.47,146.42,10.34850539]
[1750833908742,3.51910508,146.45,146.4,5.12290508]
[1750833908910,3.51910508,146.41,146.37,6.2315]
[1750833909110,3.51910508,146.4,146.36,1.6123]
[1750833909305,3.51910508,146.39,146.36,1.6123]
[1750833909506,3.51910508,146.4,146.36,1.6123]
[1750833910334,10.34980936,146.4,146.36,1.6123]
[1750833911306,10.34980936,146.4,146.36,11.96379204]
[1750833911307,3.51910508,146.4,146.36,11.96379204]
[1750833911626,5.10159461,146.43,146.39,3.51910508]
[1750833911813,8.62069969,146.44,146.39,3.51910508]
[1750833912013,3.51910508,146.43,146.39,3.51910508]
[1750833912622,10.34830973,146.43,146.39,3.51910508]
[1750833913036,3.51910508,146.43,146.39,10.35015116]
[1750833914241,5.49717848,146.43,146.39,12.32822456]
[1750833917324,11.93050499,146.44,146.39,12.32822456]
[1750833917525,5.49717848,146.43,146.39,6.83104608]
[1750833917730,5.49717848,146.43,146.39,12.32822456]
[1750833920227,11.93050499,146.44,146.4,5.49717848]
[1750833920228,5.10159461,146.44,146.4,5.49717848]
[1750833921350,17.42753936,146.44,146.4,5.49717848]
[1750833922047,17.42753936,146.44,146.39,6.83104608]
[1750833922251,17.43092106,146.44,146.4,5.49717848]
[1750833923231,17.43092106,146.44,146.39,12.32822456]
[1750833923423,17.43092106,146.44,146.39,5.49717848]
[1750833923630,5.49717848,146.43,146.38,12.32858449]
[1750833924340,12.32657109,146.43,146.38,12.32858449]
[1750833928059,17.4315474,146.43,146.38,12.32858449]
[1750833928227,12.32657109,146.43,146.38,12.32858449]
[1750833929345,12.32657109,146.43,146.37,25.48164995]
[1750833929659,12.32657109,146.43,146.38,5.49717848]
[1750833929660,17.4315474,146.43,146.38,5.49717848]
[1750833929843,12.32657109,146.43,146.38,5.49717848]
[1750833930148,17.4315474,146.43,146.38,5.49717848]
[1750833930356,12.32657109,146.43,146.38,5.49717848]
[1750833930866,12.32657109,146.43,146.38,12.3285969]
[1750833931657,17.4310019,146.44,146.39,5.49717848]
[1750833932234,12.32602559,146.44,146.39,5.49717848]
[1750833932436,17.4310019,146.44,146.39,5.49717848]
[1750833932741,12.32602559,146.44,146.39,12.32799186]
[1750833932942,17.4310019,146.44,146.39,12.32799186]
[1750833933264,12.32602559,146.44,146.39,12.32799186]
[1750833933636,5.49717848,146.43,146.39,6.83081338]
[1750833934264,3.51827618,146.43,146.38,3.51827618]
[1750833934855,10.34712329,146.44,146.39,3.51827618]
[1750833935374,10.34712329,146.44,146.39,6.83074614]
[1750833935575,10.34712329,146.44,146.39,10.34902232]
[1750833936170,3.51827618,146.43,146.38,10.34936722]
[1750833937039,10.34754151,146.43,146.38,10.34936722]
[1750833939953,3.51827618,146.42,146.36,7.5123]
[1750833940156,3.51827618,146.41,146.36,11.03057618]
[1750833940460,3.51827618,146.4,146.36,17.86268354]
[1750833940763,3.51827618,146.4,146.36,7.5123]
[1750833942068,10.34895546,146.4,146.36,7.5123]
[1750833942974,10.34895546,146.4,146.36,11.03057618]
[1750833943364,3.51827618,146.4,146.36,17.86298975]
[1750833943571,10.34845285,146.41,146.37,3.51827618]
[1750833944242,6.83017667,146.41,146.37,3.51827618]
[1750833944958,3.51827618,146.41,146.37,3.51827618]
[1750833946172,10.34868297,146.41,146.37,3.51827618]
[1750833950874,15.45365928,146.41,146.36,17.86298975]
[1750833951046,10.34868297,146.41,146.36,17.86298975]
[1750833951555,15.45365928,146.41,146.36,17.86298975]
[1750833951749,10.34868297,146.41,146.36,17.86298975]
[1750833952267,15.45365928,146.41,146.36,17.86298975]
[1750833952450,3.51827618,146.4,146.36,17.86298975]
[1750833953951,10.348989,146.4,146.36,7.5123]
[1750833959162,3.51827618,146.39,146.33,1.5275]
[1750833959364,15.46362575,146.39,146.34,10.35152568]
[1750833959563,5.1141665,146.4,146.36,3.51827618]
[1750833959772,36.34869657,146.41,146.36,3.51827618]
[1750833960066,8.63173434,146.4,146.36,3.51827618]
[1750833960284,3.51827618,146.4,146.36,3.51827618]
[1750833960485,8.63169035,146.4,146.36,3.51827618]
[1750833960774,5.11341417,146.4,146.36,10.35042696]
[1750833961389,5.11341417,146.4,146.37,3.51827618]
[1750833961590,5.11299907,146.41,146.37,3.51827618]
[1750833961886,5.11299907,146.41,146.38,3.51827618]
[1750833962063,5.11299907,146.42,146.38,3.51827618]
[1750833962262,5.11299907,146.41,146.38,3.51827618]
[1750833962464,5.11299907,146.42,146.38,3.51827618]
[1750833962761,5.11299907,146.41,146.38,3.51827618]
[1750833962980,5.11299907,146.42,146.38,3.51827618]
[1750833963180,5.11299907,146.41,146.38,3.51827618]
[1750833963571,10.34666285,146.45,146.4,3.51827618]
[1750833963781,5.11259829,146.44,146.4,3.51827618]
[1750833964092,5.11259829,146.43,146.4,3.51827618]
[1750833964301,10.34666285,146.45,146.41,3.51827618]
[1750833964487,8.63090899,146.44,146.4,3.51827618]
[1750833964788,5.11263281,146.43,146.4,3.51827618]
[1750833965282,5.11263281,146.43,146.4,10.34885901]
[1750833965488,10.34708537,146.44,146.4,3.51827618]
[1750833965697,5.11261958,146.43,146.4,3.51827618]
[1750833965875,10.34708537,146.44,146.4,3.51827618]
[1750833966074,5.11261832,146.43,146.4,3.51827618]
[1750833966279,10.34708537,146.44,146.4,3.51827618]
[1750833966468,5.11260162,146.43,146.4,3.51827618]
[1750833966667,10.34708537,146.44,146.4,3.51827618]
[1750833966878,5.1126552,146.43,146.4,3.51827618]
[1750833967064,10.34708537,146.44,146.4,3.51827618]
[1750833967269,5.1126851,146.43,146.4,3.51827618]
[1750833967477,10.34708537,146.44,146.4,3.51827618]
[1750833967690,10.34708537,146.44,146.39,6.83087558]
[1750833967691,5.11265696,146.43,146.39,6.83087558]
[1750833967884,5.11273541,146.43,146.4,3.51827618]
[1750833969173,8.63101159,146.43,146.39,10.34915176]
[1750833971893,3.51827618,146.41,146.37,1.5731]
[1750833972196,3.51827618,146.4,146.37,1.5731]
[1750833972970,3.51827618,146.39,146.37,1.5731]
[1750833973194,3.51827618,146.39,146.36,5.88]
[1750833974184,8.63101159,146.4,146.36,5.88]
[1750833974499,17.443419,146.4,146.36,5.88]
[1750833974694,12.33068359,146.4,146.36,5.88]
[1750833975393,17.443419,146.4,146.36,5.88]
[1750833975593,12.33068359,146.4,146.36,5.88]
[1750833975980,17.443419,146.4,146.36,5.88]
[1750833976188,12.33068359,146.4,146.36,5.88]
[1750833976596,17.443419,146.4,146.36,5.88]
[1750833976791,5.49992796,146.4,146.36,5.88]
[1750833977103,10.61266337,146.4,146.36,5.88]
[1750833978201,17.44357384,146.4,146.36,5.88]
[1750833978411,12.33083843,146.4,146.36,5.88]
[1750833978604,5.49992796,146.39,146.35,5.49992796]
[1750833979400,5.49992796,146.39,146.34,12.33313896]
[1750833980026,10.61267168,146.39,146.34,12.33313896]
[1750833980500,17.44406325,146.39,146.34,12.33313896]
[1750833980677,12.33131953,146.39,146.34,12.33313896]
[1750833980878,17.44406325,146.39,146.34,12.33313896]
[1750833981077,12.33131953,146.39,146.34,12.33313896]
[1750833981290,17.44406325,146.39,146.34,12.33313896]
[1750833981477,12.33131953,146.39,146.34,12.33313896]
[1750833981673,17.44406325,146.39,146.34,6.833211]
[1750833981887,5.49992796,146.38,146.34,12.33313896]
[1750833982894,5.49992796,146.38,146.33,1.5613]
[1750833982895,5.49992796,146.36,146.33,8.39498739]
[1750833983302,5.49992796,146.36,146.33,6.83368739]
[1750833983499,5.49992796,146.35,146.31,29.98093554]
[1750833983701,5.49992796,146.35,146.31,35.4808635]
[1750833984687,5.49992796,146.35,146.31,42.31539045]
[1750833984982,10.61267168,146.38,146.33,5.49992796]
[1750833985188,5.49992796,146.38,146.34,5.49992796]
[1750833986800,5.49992796,146.38,146.35,6.83293474]
[1750833989209,5.49992796,146.38,146.32,23.92017495]
[1750833989511,5.49992796,146.38,146.34,5.49992796]
[1750833991616,5.49992796,146.38,146.35,6.83293474]
[1750833992509,5.11274372,146.4,146.35,6.83293474]
[1750833992809,5.49992796,146.39,146.35,6.83293474]
[1750833994211,10.61267168,146.4,146.35,6.83293474]
[1750833994393,5.49992796,146.4,146.35,12.3328627]
[1750833994600,10.61267168,146.4,146.35,12.3328627]
[1750833994797,5.49992796,146.4,146.35,12.3328627]
[1750833996084,5.49992796,146.4,146.33,17.08362584]
[1750833996288,5.49992796,146.4,146.36,5.49992796]
[1750833996520,5.49992796,146.4,146.35,5.49992796]
[1750833996818,5.49992796,146.39,146.35,5.49992796]
[1750833997120,5.49992796,146.37,146.33,5.49992796]
[1750833997413,5.49992796,146.38,146.33,5.49992796]
[1750833997617,5.49992796,146.38,146.34,5.49992796]
[1750833998202,5.49992796,146.38,146.35,6.83293474]
[1750833998686,5.49992796,146.37,146.33,5.49992796]
[1750834000408,5.49992796,146.37,146.33,12.33343896]
[1750834000606,5.49992796,146.37,146.33,6.833511]
[1750834000794,5.49992796,146.36,146.32,12.33418719]
[1750834002323,5.49992796,146.36,146.32,6.83425923]
[1750834002498,6.83211468,146.37,146.32,6.83425923]
[1750834002499,5.49992796,146.35,146.32,6.83425923]
[1750834002699,5.49992796,146.35,146.31,36.43557505]
[1750834003413,5.49992796,146.35,146.31,30.93564709]
[1750834006720,5.49992796,146.35,146.31,36.43557505]
[1750834007019,5.49992796,146.35,146.31,30.93564709]
[1750834008819,12.33293773,146.35,146.31,24.10093554]
[1750834010199,12.33293773,146.35,146.31,30.93570845]
[1750834011110,12.33293773,146.35,146.31,24.10093554]
[1750834011424,5.49992796,146.34,146.31,30.93570317]
[1750834011928,5.49992796,146.34,146.31,24.10093554]
[1750834012524,5.49992796,146.34,146.31,30.9356994]
[1750834012928,5.49992796,146.35,146.31,30.9356994]
[1750834013921,12.33292723,146.35,146.31,30.9356994]
[1750834014133,5.49992796,146.34,146.31,24.10093554]
[1750834014702,5.49992796,146.33,146.31,24.10093554]
[1750834015116,5.49992796,146.32,146.31,24.10093554]
[1750834016133,12.33426366,146.32,146.31,24.10093554]
[1750834016420,10.35885428,146.32,146.31,24.10093554]
[1750834018242,12.3417212,146.32,146.31,24.10093554]
[1750834021036,12.3417212,146.32,146.23,26.0]
[1750834021037,43.8491067,146.32,146.24,5.5073855]
[1750834021333,5.5073855,146.25,146.21,7.1453855]
[1750834021821,5.5073855,146.25,146.21,1.638]
[1750834022014,5.5073855,146.25,146.21,13.98469523]
[1750834022425,5.5073855,146.24,146.2,6.83983414]
[1750834023327,5.5073855,146.23,146.2,6.83983414]
[1750834023622,5.5073855,146.26,146.21,5.5073855]
[1750834024833,5.5073855,146.26,146.22,6.83900971]
[1750834025424,5.5073855,146.24,146.18,24.12236886]
[1750834025636,5.5073855,146.23,146.19,5.5073855]
[1750834027037,5.5073855,146.24,146.19,6.84041316]
[1750834027241,5.5073855,146.24,146.19,12.34779866]
[1750834028026,5.5073855,146.23,146.19,12.34779866]
[1750834028835,5.5073855,146.24,146.19,12.34779866]
[1750834029230,5.5073855,146.23,146.19,12.34779866]
[1750834030024,5.5073855,146.24,146.19,12.34779866]
[1750834030225,5.5073855,146.26,146.21,5.5073855]
[1750834030425,5.5073855,146.28,146.23,5.5073855]
[1750834030629,146.2,146.29,146.25,5.5073855]
[1750834030839,5.5073855,146.3,146.25,5.5073855]
[1750834031148,5.5073855,146.29,146.25,5.5073855]
[1750834031324,5.5073855,146.29,146.25,12.3447259]
[1750834031819,5.5073855,146.3,146.25,12.3447259]
[1750834032028,5.5073855,146.3,146.26,5.5073855]
[1750834032241,5.5073855,146.32,146.27,5.5073855]
[1750834033033,5.5073855,146.31,146.27,5.5073855]
[1750834033224,5.5073855,146.31,146.27,6.83660877]
[1750834034548,5.5073855,146.31,146.27,12.34399427]
[1750834036648,5.5073855,146.31,146.27,6.83660877]
[1750834036823,5.5073855,146.31,146.27,12.34399427]
[1750834038957,5.5073855,146.3,146.25,5.5073855]
[1750834039126,5.5073855,146.29,146.24,24.15703436]
[1750834039930,5.5073855,146.29,146.24,30.99510875]
[1750834040129,5.5073855,146.28,146.24,12.34545989]
[1750834040330,5.5073855,146.27,146.23,18.22583448]
[1750834040544,5.5073855,146.27,146.23,12.71844898]
[1750834041250,5.5073855,146.26,146.23,5.88]
[1750834041559,5.5073855,146.26,146.22,6.83883311]
[1750834042029,5.5073855,146.25,146.22,6.83883311]
[1750834042240,5.5073855,146.24,146.21,8.41884676]
[1750834042825,18.73384956,146.29,146.21,8.41884676]
[1750834042826,5.5073855,146.26,146.22,5.5073855]
[1750834043038,1.6445,146.29,146.23,5.5073855]
[1750834043039,5.5073855,146.27,146.23,5.5073855]
[1750834043245,5.5073855,146.27,146.22,5.5073855]
[1750834043437,5.5073855,146.26,146.22,5.5073855]
[1750834044233,5.5073855,146.27,146.23,6.83854202]
[1750834045148,5.5073855,146.27,146.23,12.34592752]
[1750834045544,5.5073855,146.28,146.24,5.5073855]
[1750834045747,5.5073855,146.28,146.23,12.34592752]
[1750834046054,5.5073855,146.29,146.24,5.5073855]
[1750834046936,5.5073855,146.29,146.25,6.83760683]
[1750834047351,5.5073855,146.28,146.25,6.83760683]
[1750834048843,5.5073855,146.29,146.25,6.83760683]
[1750834052149,5.5073855,146.29,146.25,12.34499233]
[1750834052373,38.34271216,146.3,146.25,12.34499233]
[1750834054060,5.5073855,146.29,146.25,12.34499233]
[1750834056458,31.5073855,146.3,146.25,12.34499233]
[1750834056641,5.5073855,146.3,146.26,5.5073855]
[1750834057856,5.5073855,146.3,146.25,12.34499233]
[1750834064263,5.5073855,146.28,146.24,6.83799123]
[1750834064469,5.5073855,146.27,146.24,6.83799123]
[1750834064674,5.5073855,146.27,146.23,6.83834317]
[1750834064844,5.5073855,146.26,146.23,6.83834317]
[1750834066968,5.5073855,146.27,146.23,6.83834317]
[1750834068535,12.34419101,146.27,146.22,18.39763783]
[1750834068738,5.5073855,146.26,146.22,12.34623783]
[1750834069959,5.5073855,146.27,146.22,12.34623783]
[1750834072778,12.3440912,146.27,146.22,6.83885233]
[1750834072958,12.3440912,146.27,146.22,12.34623783]
[1750834075970,5.5073855,146.27,146.22,12.34623783]
[1750834077374,5.5073855,146.27,146.22,6.83885233]
[1750834077590,10.61277283,146.26,146.21,32.57575915]
[1750834077764,5.5073855,146.25,146.21,1.5794]
[1750834078867,5.5073855,146.23,146.18,13.47175974]
[1750834079082,5.5073855,146.23,146.18,12.34824524]
[1750834079254,5.5073855,146.22,146.18,6.84085974]
[1750834080466,5.5073855,146.21,146.17,31.59341915]
[1750834080669,5.5073855,146.2,146.17,31.59341915]
[1750834080847,5.5073855,146.21,146.17,25.71341915]
[1750834081646,5.5073855,146.2,146.17,25.71341915]
[1750834083881,5.5073855,146.19,146.17,24.12401915]
[1750834084556,5.5073855,146.18,146.17,24.12401915]
[1750834087072,12.34700215,146.21,146.17,24.12401915]
[1750834088477,5.5073855,146.21,146.17,36.47260712]
[1750834092084,5.5073855,146.21,146.17,30.96522162]
[1750834093368,5.5073855,146.21,146.17,36.47260712]
[1750834093568,5.5073855,146.22,146.17,36.47260712]
[1750834094258,32.83873455,146.23,146.17,36.47260712]
[1750834094461,5.5073855,146.18,146.17,24.12401915]
[1750834099803,26.0,146.2,146.17,30.965203]
[1750834100114,31.5073855,146.2,146.17,30.965203]
[1750834100286,5.5073855,146.19,146.17,24.12401915]
[1750834100687,5.5073855,146.18,146.17,24.12401915]
[1750834101897,12.3482666,146.18,146.17,24.12401915]
[1750834106498,12.3482666,146.18,146.13,12.35040897]
[1750834107200,5.5073855,146.2,146.15,5.5073855]
[1750834107386,5.5073855,146.2,146.16,5.5073855]
[1750834107895,5.5073855,146.22,146.17,5.5073855]
[1750834108086,5.5073855,146.22,146.18,5.5073855]
[1750834108288,5.5073855,146.23,146.18,5.5073855]
[1750834109081,5.5073855,146.23,146.18,12.34792553]
[1750834114105,26.0,146.25,146.21,5.5073855]
[1750834114404,29.1974833,146.27,146.22,5.5073855]
[1750834117709,5.5073855,146.26,146.22,5.5073855]
[1750834117921,12.34457222,146.26,146.22,5.5073855]
[1750834119099,32.83718672,146.26,146.19,5.5073855]
[1750834119403,5.5073855,146.23,146.19,5.5073855]
[1750834120601,12.3457975,146.24,146.19,5.5073855]
[1750834121309,5.5073855,146.23,146.19,5.5073855]
[1750834121783,5.5073855,146.23,146.17,8.37600966]
[1750834121983,5.5073855,146.23,146.18,5.5073855]
[1750834122794,12.34621533,146.23,146.18,5.5073855]
[1750834123292,6.83882983,146.23,146.18,5.5073855]
[1750834123608,5.5073855,146.22,146.17,7.0421855]
[1750834124682,12.34660516,146.22,146.17,7.0421855]
[1750834124878,12.34660516,146.22,146.18,5.5073855]
[1750834125295,12.34545989,146.24,146.2,5.5073855]
[1750834127513,5.5073855,146.24,146.2,12.34729232]
[1750834128594,5.5073855,146.24,146.17,20.18444886]
[1750834128595,5.5073855,146.23,146.19,5.5073855]
[1750834129809,5.5073855,146.23,146.19,12.34776971]
[1750834130614,12.34571817,146.24,146.19,12.34776971]
[1750834132614,12.34571817,146.24,146.2,5.5073855]
[1750834134820,6.83833267,146.24,146.2,5.5073855]
[1750834135023,12.34571817,146.24,146.2,5.5073855]
[1750834138121,6.83760683,146.25,146.2,5.5073855]
[1750834138301,31.09259603,146.26,146.2,5.5073855]
[1750834138302,31.09259603,146.26,146.21,5.5073855]
[1750834138620,12.34419783,146.27,146.23,5.5073855]
[1750834138806,17.43679386,146.27,146.23,5.5073855]
[1750834139137,5.09259603,146.28,146.24,5.5073855]
[1750834139308,11.92891538,146.28,146.24,5.5073855]
[1750834139616,17.43630088,146.28,146.23,5.5073855]
[1750834140925,5.5073855,146.26,146.22,5.5073855]
[1750834141898,11.92891538,146.28,146.22,5.5073855]
[1750834142104,5.5073855,146.27,146.23,5.5073855]
[1750834144521,17.43630088,146.28,146.23,5.5073855]
[1750834145832,17.43630088,146.28,146.23,12.3459234]
[1750834153243,17.43630088,146.28,146.23,5.5073855]
[1750834153635,17.43630088,146.28,146.22,6.83884095]
[1750834153816,17.43630088,146.28,146.23,5.5073855]
[1750834154136,5.5073855,146.27,146.23,5.5073855]
[1750834155938,5.5073855,146.27,146.23,12.34592307]
[1750834157438,5.5073855,146.27,146.21,25.48912632]
[1750834157618,5.5073855,146.27,146.23,5.5073855]
[1750834158639,17.43630088,146.28,146.23,5.5073855]
[1750834159335,17.43630088,146.28,146.22,6.83865891]
[1750834159639,17.43630088,146.28,146.23,5.5073855]
[1750834160438,17.43630088,146.28,146.23,12.34591504]
[1750834162319,15.45456645,146.28,146.23,3.52565107]
[1750834164729,15.45456645,146.28,146.22,6.83863682]
[1750834164929,15.45456645,146.28,146.23,3.52565107]
[1750834166920,15.45456645,146.28,146.23,10.36409608]
[1750834169429,15.45456645,146.28,146.21,6.83947746]
[1750834169625,15.45456645,146.28,146.23,3.52565107]
[1750834170945,15.45456645,146.28,146.21,6.83947746]
[1750834171250,3.52565107,146.26,146.21,10.36512853]
[1750834173644,3.52565107,146.26,146.23,6.83854202]
[1750834174729,3.52565107,146.25,146.18,26.0]
[1750834174930,3.52565107,146.25,146.2,3.52565107]
[1750834175646,3.52565107,146.24,146.19,18.64964886]
[1750834175852,3.52565107,146.24,146.2,3.52565107]
[1750834177137,3.52565107,146.24,146.2,10.36539493]
[1750834177847,3.52565107,146.24,146.2,6.83974386]
[1750834178236,3.52565107,146.24,146.2,10.36539493]
[1750834178625,18.44793359,146.25,146.2,10.36539493]
[1750834178826,3.52565107,146.24,146.2,10.36539493]
[1750834179719,21.97358466,146.25,146.2,10.36539493]
[1750834180840,21.97358466,146.25,146.21,3.52565107]
[1750834180841,11.61009603,146.25,146.21,3.52565107]
[1750834181025,16.99875932,146.26,146.21,3.52565107]
[1750834181226,5.09259603,146.25,146.21,3.52565107]
[1750834181530,5.09259603,146.25,146.22,3.52565107]
[1750834183955,16.99875932,146.26,146.22,3.52565107]
[1750834184541,6.63579603,146.26,146.22,10.36460925]
[1750834184746,8.6182471,146.27,146.22,10.36460925]
[1750834184946,5.09259603,146.26,146.22,10.36460925]
[1750834185451,15.45545751,146.26,146.21,10.36501409]
[1750834185635,8.6182471,146.25,146.21,3.52565107]
[1750834185944,10.36251849,146.27,146.22,3.52565107]
[1750834186152,5.1198639,146.26,146.22,3.52565107]
[1750834186352,10.36251849,146.27,146.22,3.52565107]
[1750834186556,5.11986291,146.26,146.22,3.52565107]
[1750834186752,10.36251849,146.27,146.22,3.52565107]
[1750834186955,5.11996153,146.26,146.22,10.3644447]
[1750834187263,10.36251849,146.27,146.22,10.3644447]
[1750834187444,5.11996153,146.26,146.22,10.3644447]
[1750834187633,10.36251849,146.27,146.22,10.3644447]
[1750834187833,5.11998739,146.26,146.22,10.3644447]
[1750834188135,10.36251849,146.27,146.23,3.52565107]
[1750834188431,5.11998772,146.26,146.23,3.52565107]
[1750834188752,10.36251849,146.27,146.23,3.52565107]
[1750834188947,5.11997173,146.26,146.23,3.52565107]
[1750834189537,10.36251849,146.27,146.23,3.52565107]
[1750834190551,189.13377733,146.29,146.24,3.52565107]
[1750834190750,182.29785107,146.29,146.24,3.52565107]
[1750834190932,5.11939049,146.28,146.25,6.83760683]
[1750834191133,5.11939049,146.27,146.25,10.3632579]
[1750834191335,5.11939049,146.28,146.25,10.3632579]
[1750834191534,5.11939049,146.27,146.25,10.3632579]
[1750834191837,5.11939049,146.28,146.25,10.3632579]
[1750834192041,5.11939049,146.27,146.25,10.3632579]
[1750834192242,5.11939049,146.28,146.25,10.3632579]
[1750834194257,5.11939049,146.28,146.25,6.83760683]
[1750834194562,5.11939049,146.27,146.25,6.83760683]
[1750834194855,8.64504156,146.28,146.24,10.36354188]
[1750834195055,5.11939049,146.27,146.24,10.36354188]
[1750834195660,3.52565107,146.28,146.24,10.36354188]
[1750834195661,8.64504156,146.28,146.24,10.36354188]
[1750834196177,8.64504156,146.28,146.21,35.74796428]
[1750834196178,3.52565107,146.26,146.22,6.83900971]
[1750834196654,3.52565107,146.26,146.21,10.36498284]
[1750834198366,10.36289255,146.26,146.21,10.36498284]
[1750834200145,6.8366719,146.27,146.21,10.36498284]
[1750834200343,8.64504156,146.26,146.21,10.36498284]
[1750834202460,5.11939049,146.26,146.23,3.52565107]
[1750834202672,5.11939049,146.27,146.24,3.52565107]
[1750834203160,5.11939049,146.28,146.24,3.52565107]
[1750834204263,5.11939049,146.28,146.24,10.36356282]
[1750834205373,8.64504156,146.28,146.24,10.36356282]
[1750834206548,15.48129209,146.28,146.24,10.36356282]
[1750834206855,15.48129209,146.28,146.24,3.52565107]
[1750834207555,15.48129209,146.28,146.23,10.3639937]
[1750834209360,8.64504156,146.27,146.23,10.3639937]
[1750834209983,15.48181937,146.27,146.2,35.74951206]
[1750834210161,3.52565107,146.27,146.22,3.52565107]
[1750834210366,5.11939049,146.27,146.24,3.52565107]
[1750834212077,5.11939049,146.27,146.23,10.36414187]
[1750834213277,15.48174275,146.27,146.22,6.83883739]
[1750834213485,10.36235226,146.27,146.22,10.36448846]
[1750834213652,15.48174275,146.27,146.22,10.36448846]
[1750834213856,10.36235226,146.27,146.22,10.36448846]
[1750834214185,15.48174275,146.27,146.22,10.36448846]
[1750834214365,10.36235226,146.27,146.22,10.36448846]
[1750834214662,15.48174275,146.27,146.22,10.36448846]
[1750834214864,10.36235226,146.27,146.22,10.36448846]
[1750834215062,15.48174275,146.27,146.22,10.36448846]
[1750834215363,10.36235226,146.27,146.22,10.36448846]
[1750834215583,15.48174275,146.27,146.22,10.36448846]
[1750834215775,10.36235226,146.27,146.22,10.36448846]
[1750834215965,15.48174275,146.27,146.22,10.36448846]
[1750834216154,10.36235226,146.27,146.22,10.36448846]
[1750834216356,15.48174275,146.27,146.22,10.36448846]
[1750834216578,10.36235226,146.27,146.22,10.36448846]
[1750834216770,15.48174275,146.27,146.22,10.36448846]
[1750834216973,10.36235226,146.27,146.22,10.36448846]
[1750834217170,15.48174275,146.27,146.22,3.52565107]
[1750834217379,10.36235226,146.27,146.22,3.52565107]
[1750834217561,5.11939049,146.26,146.22,3.52565107]
[1750834218862,8.64504156,146.26,146.21,10.36495449]
[1750834220384,5.11939049,146.26,146.22,3.52565107]
[1750834221576,11.95669977,146.26,146.22,3.52565107]
[1750834223177,15.48235084,146.26,146.21,10.36495449]
[1750834223387,3.52565107,146.25,146.21,3.52565107]
[1750834223579,3.52565107,146.24,146.19,16.24588641]
[1750834224078,3.52565107,146.23,146.18,10.36641956]
[1750834224577,3.52565107,146.23,146.18,6.84076849]
[1750834224775,3.52565107,146.22,146.18,10.36641956]
[1750834224957,3.52565107,146.23,146.19,3.52565107]
[1750834225157,5.11939049,146.24,146.2,3.52565107]
[1750834225382,5.11939049,146.24,146.21,3.52565107]
[1750834226964,5.11939049,146.24,146.2,10.36535265]